[Event "*** Titled Tuesday Blitz"]
[Site "Chess.com"]
[Date "2020.12.01"]
[Round "5"]
[White "akanga001"]
[Black "coco_crc"]
[Result "0-1"]
[WhiteElo "1938"]
[BlackElo "2181"]
[TimeControl "180+1"]
[EndTime "10:53:56 PST"]
[Termination "coco_crc won by checkmate"]

1. d4 {[%clk 0:03:00.1]} 1... Nf6 {[%clk 0:02:22.2]} 2. c4 {[%clk 0:02:58.3]}
2... e5 {[%clk 0:02:19.8]} 3. dxe5 {[%clk 0:02:56.6]} 3... Ng4 {[%clk
0:02:19.9]} 4. Nf3 {[%clk 0:02:55.3]} 4... Bc5 {[%clk 0:02:18.2]} 5. e3 {[%clk
0:02:54.8]} 5... Nc6 {[%clk 0:02:18.4]} 6. Be2 {[%clk 0:02:53.6]} 6... Ngxe5
{[%clk 0:02:18.5]} 7. O-O {[%clk 0:02:52.2]} 7... O-O {[%clk 0:02:18.5]} 8. Nc3
{[%clk 0:02:50.6]} 8... Re8 {[%clk 0:02:18.2]} 9. a3 {[%clk 0:02:48]} 9... a5
{[%clk 0:02:18.1]} 10. Nd5 {[%clk 0:02:45.6]} 10... Nxf3+ {[%clk 0:02:17.7]} 11.
Bxf3 {[%clk 0:02:44.4]} 11... Ne5 {[%clk 0:02:18.1]} 12. Be2 {[%clk 0:02:44.9]}
12... Ra6 {[%clk 0:02:13.1]} 13. Rb1 {[%clk 0:02:42.3]} 13... Rh6 {[%clk
0:02:12.8]} 14. e4 {[%clk 0:02:41.6]} 14... Rg6 {[%clk 0:02:12.4]} 15. b4 {[%clk
0:02:41.2]} 15... axb4 {[%clk 0:02:06.9]} 16. axb4 {[%clk 0:02:39.8]} 16... Ba7
{[%clk 0:02:05.9]} 17. Bh5 {[%clk 0:02:38.9]} 17... Rge6 {[%clk 0:02:04.5]} 18.
c5 {[%clk 0:02:37.2]} 18... d6 {[%clk 0:02:02.1]} 19. f4 {[%clk 0:02:30.3]}
19... Nd7 {[%clk 0:01:55.1]} 20. Bg4 {[%clk 0:02:22.2]} 20... Rxe4 {[%clk
0:01:52.8]} 21. Bf5 {[%clk 0:02:15.8]} 21... dxc5 {[%clk 0:01:16.7]} 22. Bxe4
{[%clk 0:02:13.7]} 22... Rxe4 {[%clk 0:01:14.3]} 23. bxc5 {[%clk 0:01:59.4]}
23... Nxc5 {[%clk 0:01:12.6]} 24. Kh1 {[%clk 0:01:56.2]} 24... Be6 {[%clk
0:00:54.6]} 25. Nc3 {[%clk 0:01:46.6]} 25... Rd4 {[%clk 0:00:52.6]} 26. Qh5
{[%clk 0:01:35.9]} 26... Nd3 {[%clk 0:00:48.5]} 27. Be3 {[%clk 0:01:28.8]} 27...
g6 {[%clk 0:00:33.9]} 28. Qh6 {[%clk 0:01:05.1]} 28... Bb6 {[%clk 0:00:33.4]}
29. Bxd4 {[%clk 0:01:02.9]} 29... Qxd4 {[%clk 0:00:34.2]} 30. Nb5 {[%clk
0:00:54.3]} 30... Nf2+ {[%clk 0:00:29.5]} 31. Rxf2 {[%clk 0:00:53.3]} 31... Qxf2
{[%clk 0:00:30.4]} 32. Rd1 {[%clk 0:00:49.9]} 32... Bd5 {[%clk 0:00:26.5]} 33.
Nc3 {[%clk 0:00:44.6]} 33... Qxg2# {[%clk 0:00:24.9]} 0-1

[Event "*** Titled Tuesday Blitz"]
[Site "Chess.com"]
[Date "2020.12.01"]
[Round "5"]
[White "eCztery"]
[Black "PotapovaM"]
[Result "1-0"]
[WhiteElo "2337"]
[BlackElo "2578"]
[TimeControl "180+1"]
[EndTime "10:53:57 PST"]
[Termination "eCztery won by checkmate"]

1. e4 {[%clk 0:03:00.5]} 1... c5 {[%clk 0:02:59.6]} 2. Nf3 {[%clk 0:03:00]} 2...
d6 {[%clk 0:03:00.2]} 3. d4 {[%clk 0:02:55]} 3... cxd4 {[%clk 0:03:01.1]} 4.
Qxd4 {[%clk 0:02:54.9]} 4... Nc6 {[%clk 0:03:00.9]} 5. Bb5 {[%clk 0:02:53]} 5...
Bd7 {[%clk 0:03:00.5]} 6. Bxc6 {[%clk 0:02:52.2]} 6... Bxc6 {[%clk 0:03:01.4]}
7. Nc3 {[%clk 0:02:52.3]} 7... Nf6 {[%clk 0:03:01.6]} 8. Bg5 {[%clk 0:02:52.5]}
8... e6 {[%clk 0:03:01.9]} 9. O-O-O {[%clk 0:02:52.3]} 9... Be7 {[%clk
0:03:02.3]} 10. Rhe1 {[%clk 0:02:51.9]} 10... O-O {[%clk 0:03:02.2]} 11. Kb1
{[%clk 0:02:49.4]} 11... Qc7 {[%clk 0:03:01.6]} 12. Qd2 {[%clk 0:02:45.6]} 12...
b5 {[%clk 0:02:54]} 13. Nd4 {[%clk 0:02:43.1]} 13... b4 {[%clk 0:02:49.7]} 14.
Ncb5 {[%clk 0:02:40.3]} 14... Qb6 {[%clk 0:02:33.2]} 15. Nxc6 {[%clk 0:02:39]}
15... Qxc6 {[%clk 0:02:30.8]} 16. Nxd6 {[%clk 0:02:23.3]} 16... Rfd8 {[%clk
0:01:32.5]} 17. e5 {[%clk 0:02:02.2]} 17... Bxd6 {[%clk 0:01:21.5]} 18. Bxf6
{[%clk 0:01:43.8]} 18... gxf6 {[%clk 0:01:12.2]} 19. exd6 {[%clk 0:01:39.5]}
19... a5 {[%clk 0:01:12.2]} 20. Re3 {[%clk 0:01:31.1]} 20... Kf8 {[%clk
0:00:47.8]} 21. Rg3 {[%clk 0:01:21.4]} 21... Ke8 {[%clk 0:00:48]} 22. Qf4 {[%clk
0:00:53.7]} 22... f5 {[%clk 0:00:41.6]} 23. d7+ {[%clk 0:00:44.9]} 23... Ke7
{[%clk 0:00:22.3]} 24. Qg5+ {[%clk 0:00:43.2]} 24... Kf8 {[%clk 0:00:22.2]} 25.
b3 {[%clk 0:00:29.9]} 25... Ra7 {[%clk 0:00:15.9]} 26. Qxd8# {[%clk 0:00:28.9]}
1-0

[Event "*** Titled Tuesday Blitz"]
[Site "Chess.com"]
[Date "2020.12.01"]
[Round "5"]
[White "anon219"]
[Black "Beltraxtor"]
[Result "1-0"]
[WhiteElo "2770"]
[BlackElo "2560"]
[TimeControl "180+1"]
[EndTime "10:53:59 PST"]
[Termination "anon219 won by checkmate"]

1. e4 {[%clk 0:03:00.9]} 1... e5 {[%clk 0:02:56.9]} 2. Bc4 {[%clk 0:03:00]} 2...
Nf6 {[%clk 0:02:55.5]} 3. Nc3 {[%clk 0:03:00.5]} 3... Bc5 {[%clk 0:02:49.6]} 4.
d3 {[%clk 0:03:00.2]} 4... Nc6 {[%clk 0:02:45.9]} 5. f4 {[%clk 0:03:00.1]} 5...
d6 {[%clk 0:02:43.1]} 6. Nf3 {[%clk 0:03:00]} 6... a6 {[%clk 0:02:30.7]} 7. f5
{[%clk 0:02:57.1]} 7... h6 {[%clk 0:02:19.7]} 8. Qe2 {[%clk 0:02:53.6]} 8... Na5
{[%clk 0:02:10.5]} 9. Bb3 {[%clk 0:02:46.8]} 9... Nxb3 {[%clk 0:02:05.7]} 10.
axb3 {[%clk 0:02:47.7]} 10... Bd7 {[%clk 0:02:03.3]} 11. Be3 {[%clk 0:02:47.4]}
11... Qe7 {[%clk 0:01:39.3]} 12. O-O {[%clk 0:02:36.8]} 12... Bxe3+ {[%clk
0:01:25.2]} 13. Qxe3 {[%clk 0:02:37.7]} 13... c5 {[%clk 0:01:25.9]} 14. h3
{[%clk 0:02:25.3]} 14... Bc6 {[%clk 0:01:23.5]} 15. g4 {[%clk 0:02:12.4]} 15...
O-O-O {[%clk 0:01:18.6]} 16. b4 {[%clk 0:02:07.1]} 16... cxb4 {[%clk 0:01:13.5]}
17. Na4 {[%clk 0:01:48.7]} 17... Kb8 {[%clk 0:01:12.5]} 18. Qb6 {[%clk
0:01:44.5]} 18... g6 {[%clk 0:00:36.5]} 19. fxg6 {[%clk 0:01:39.6]} 19... fxg6
{[%clk 0:00:35.5]} 20. Qxb4 {[%clk 0:01:36.6]} 20... g5 {[%clk 0:00:33]} 21. Nb6
{[%clk 0:01:33.7]} 21... h5 {[%clk 0:00:24.3]} 22. Nxg5 {[%clk 0:01:16.4]} 22...
hxg4 {[%clk 0:00:23.6]} 23. Rxa6 {[%clk 0:01:08.6]} 23... gxh3 {[%clk
0:00:14.2]} 24. Ra8+ {[%clk 0:00:59.1]} 24... Kc7 {[%clk 0:00:14.2]} 25. Rxd8
{[%clk 0:00:58.9]} 25... Kxd8 {[%clk 0:00:07.7]} 26. Kh1 {[%clk 0:00:52.2]}
26... Ng4 {[%clk 0:00:06.8]} 27. Nf7+ {[%clk 0:00:51.6]} 27... Kc7 {[%clk
0:00:06.5]} 28. Qa5 {[%clk 0:00:49.1]} 28... Qh4 {[%clk 0:00:02.4]} 29. Nd5+
{[%clk 0:00:49]} 29... Kd7 {[%clk 0:00:02]} 30. Qc7+ {[%clk 0:00:48.8]} 30...
Ke8 {[%clk 0:00:01.5]} 31. Nxd6# {[%clk 0:00:48]} 1-0

[Event "*** Titled Tuesday Blitz"]
[Site "Chess.com"]
[Date "2020.12.01"]
[Round "5"]
[White "anon569"]
[Black "TheKingDoctor"]
[Result "1-0"]
[WhiteElo "2276"]
[BlackElo "2066"]
[TimeControl "180+1"]
[EndTime "10:54:00 PST"]
[Termination "anon569 won by resignation"]

1. e4 {[%clk 0:02:37.7]} 1... c5 {[%clk 0:02:59]} 2. Nf3 {[%clk 0:02:37.1]} 2...
g6 {[%clk 0:02:59.5]} 3. d4 {[%clk 0:02:37.6]} 3... cxd4 {[%clk 0:03:00.4]} 4.
Qxd4 {[%clk 0:02:37.9]} 4... Nf6 {[%clk 0:02:58.4]} 5. Nc3 {[%clk 0:02:36.8]}
5... Nc6 {[%clk 0:02:57.8]} 6. Qa4 {[%clk 0:02:36.6]} 6... Bg7 {[%clk
0:02:57.3]} 7. e5 {[%clk 0:02:36.3]} 7... Ng8 {[%clk 0:02:51.7]} 8. Bf4 {[%clk
0:02:36.5]} 8... Qa5 {[%clk 0:02:46.5]} 9. Qxa5 {[%clk 0:02:31.1]} 9... Nxa5
{[%clk 0:02:47.4]} 10. Nb5 {[%clk 0:02:22.1]} 10... Kd8 {[%clk 0:02:47.1]} 11.
e6 {[%clk 0:01:33]} 11... d6 {[%clk 0:02:31]} 12. exf7 {[%clk 0:01:30]} 12...
Nh6 {[%clk 0:02:29.8]} 13. Ng5 {[%clk 0:01:29.2]} 13... Nc6 {[%clk 0:02:18.7]}
14. O-O-O {[%clk 0:01:19.7]} 14... Ne5 {[%clk 0:01:40.3]} 15. Nd4 {[%clk
0:00:51.6]} 15... Nexf7 {[%clk 0:00:07]} 16. Nge6+ {[%clk 0:00:46.8]} 16... Bxe6
{[%clk 0:00:06.2]} 17. Nxe6+ {[%clk 0:00:45.7]} 17... Kd7 {[%clk 0:00:07.1]} 18.
Nxg7 {[%clk 0:00:45.9]} 18... Rhg8 {[%clk 0:00:07.7]} 19. Bb5+ {[%clk
0:00:44.8]} 19... Kc7 {[%clk 0:00:05.7]} 20. Ne6+ {[%clk 0:00:45.3]} 20... Kb6
{[%clk 0:00:06.2]} 21. Bc4 {[%clk 0:00:44.7]} 21... a6 {[%clk 0:00:03.5]} 22.
Be3+ {[%clk 0:00:43.9]} 22... Ka5 {[%clk 0:00:02.7]} 23. c3 {[%clk 0:00:43.5]}
23... b5 {[%clk 0:00:03.6]} 24. b4+ {[%clk 0:00:41.1]} 24... Ka4 {[%clk
0:00:03.2]} 25. Bb3+ {[%clk 0:00:40.9]} 25... Ka3 {[%clk 0:00:03.7]} 26. Kc2
{[%clk 0:00:41.3]} 1-0

[Event "*** Titled Tuesday Blitz"]
[Site "Chess.com"]
[Date "2020.12.01"]
[Round "5"]
[White "WonderChampion"]
[Black "lelya96"]
[Result "0-1"]
[WhiteElo "2019"]
[BlackElo "2224"]
[TimeControl "180+1"]
[EndTime "10:54:02 PST"]
[Termination "lelya96 won on time"]

1. d4 {[%clk 0:03:00.9]} 1... d5 {[%clk 0:02:58.8]} 2. Nf3 {[%clk 0:03:00]} 2...
Nf6 {[%clk 0:02:56.2]} 3. e3 {[%clk 0:02:41.4]} 3... e6 {[%clk 0:02:54.2]} 4.
Bd3 {[%clk 0:02:23.8]} 4... Bd6 {[%clk 0:02:48.5]} 5. c4 {[%clk 0:02:20.3]} 5...
c6 {[%clk 0:02:47.2]} 6. c5 {[%clk 0:02:19.4]} 6... Bc7 {[%clk 0:02:46.4]} 7.
Nc3 {[%clk 0:02:12.8]} 7... Nbd7 {[%clk 0:02:45.9]} 8. O-O {[%clk 0:02:10.6]}
8... e5 {[%clk 0:02:45.5]} 9. Bc2 {[%clk 0:02:01.5]} 9... O-O {[%clk 0:02:42.9]}
10. Re1 {[%clk 0:01:58.9]} 10... Qe7 {[%clk 0:02:41.9]} 11. Ng5 {[%clk
0:01:49.9]} 11... h6 {[%clk 0:02:39]} 12. Nf3 {[%clk 0:01:48.3]} 12... Re8
{[%clk 0:02:37.1]} 13. Nh4 {[%clk 0:01:47.2]} 13... Nf8 {[%clk 0:02:35.1]} 14.
Nf5 {[%clk 0:01:45.7]} 14... Bxf5 {[%clk 0:02:32.8]} 15. Bxf5 {[%clk 0:01:46.6]}
15... e4 {[%clk 0:02:32.7]} 16. Bh3 {[%clk 0:01:43.5]} 16... b6 {[%clk
0:02:26.7]} 17. cxb6 {[%clk 0:01:40.3]} 17... axb6 {[%clk 0:02:25.7]} 18. f3
{[%clk 0:01:32.7]} 18... Qd6 {[%clk 0:01:55.7]} 19. g3 {[%clk 0:01:27.9]} 19...
exf3 {[%clk 0:01:51.6]} 20. Qxf3 {[%clk 0:01:26.3]} 20... N8h7 {[%clk
0:01:50.5]} 21. Bf5 {[%clk 0:01:21.8]} 21... Ng5 {[%clk 0:01:49.7]} 22. Qf1
{[%clk 0:01:04.6]} 22... g6 {[%clk 0:01:39.3]} 23. Bd3 {[%clk 0:01:02.3]} 23...
Kg7 {[%clk 0:01:38.8]} 24. Re2 {[%clk 0:00:57.1]} 24... h5 {[%clk 0:01:38]} 25.
Bd2 {[%clk 0:00:49.7]} 25... Rh8 {[%clk 0:01:34.9]} 26. Rc1 {[%clk 0:00:32.8]}
26... h4 {[%clk 0:01:34]} 27. Rg2 {[%clk 0:00:19.4]} 27... hxg3 {[%clk
0:01:20.6]} 28. hxg3 {[%clk 0:00:20.3]} 28... Nh3+ {[%clk 0:01:17.4]} 29. Kh1
{[%clk 0:00:12.9]} 29... Nf4+ {[%clk 0:01:16.5]} 30. Kg1 {[%clk 0:00:12.5]}
30... Nxg2 {[%clk 0:01:15.7]} 31. Qxg2 {[%clk 0:00:13.4]} 31... Ng4 {[%clk
0:01:13.7]} 32. Rf1 {[%clk 0:00:10.7]} 32... Qxg3 {[%clk 0:01:04.5]} 33. Qxg3
{[%clk 0:00:07.7]} 33... Bxg3 {[%clk 0:01:04.9]} 34. Rf3 {[%clk 0:00:05.9]}
34... Bd6 {[%clk 0:00:59.5]} 0-1

[Event "*** Titled Tuesday Blitz"]
[Site "Chess.com"]
[Date "2020.12.01"]
[Round "5"]
[White "kirillshevchenko"]
[Black "NiranjanNavalgund"]
[Result "1-0"]
[WhiteElo "2852"]
[BlackElo "2437"]
[TimeControl "180+1"]
[EndTime "10:54:03 PST"]
[Termination "kirillshevchenko won by resignation"]

1. e4 {[%clk 0:03:00.9]} 1... e5 {[%clk 0:02:59.6]} 2. d3 {[%clk 0:02:59.7]}
2... Nf6 {[%clk 0:02:58.2]} 3. f4 {[%clk 0:02:59.3]} 3... exf4 {[%clk
0:02:56.8]} 4. Bxf4 {[%clk 0:02:59.9]} 4... d5 {[%clk 0:02:57.2]} 5. e5 {[%clk
0:02:59.8]} 5... Nfd7 {[%clk 0:02:57.1]} 6. Nf3 {[%clk 0:02:59.2]} 6... c5
{[%clk 0:02:57]} 7. Nc3 {[%clk 0:02:58.2]} 7... Nb6 {[%clk 0:02:53.7]} 8. Be2
{[%clk 0:02:56]} 8... Nc6 {[%clk 0:02:54]} 9. O-O {[%clk 0:02:55.9]} 9... Be7
{[%clk 0:02:54]} 10. Qe1 {[%clk 0:02:54]} 10... Be6 {[%clk 0:02:54.1]} 11. Qg3
{[%clk 0:02:52]} 11... g6 {[%clk 0:02:48]} 12. Nb5 {[%clk 0:02:45.7]} 12... h6
{[%clk 0:02:46.2]} 13. Nd6+ {[%clk 0:02:30.4]} 13... Kd7 {[%clk 0:02:45.6]} 14.
Nxb7 {[%clk 0:02:26.7]} 14... Qc7 {[%clk 0:02:45.1]} 15. Nd6 {[%clk 0:02:26.8]}
15... g5 {[%clk 0:02:45]} 16. Be3 {[%clk 0:02:04.4]} 16... Bxd6 {[%clk
0:02:34.5]} 17. exd6 {[%clk 0:02:02.2]} 17... Qxd6 {[%clk 0:02:35.4]} 18. Qf2
{[%clk 0:01:48.3]} 18... d4 {[%clk 0:02:30.4]} 19. Bd2 {[%clk 0:01:48.2]} 19...
f5 {[%clk 0:02:24.6]} 20. c3 {[%clk 0:01:43.8]} 20... Rae8 {[%clk 0:02:22.3]}
21. b4 {[%clk 0:01:40.8]} 21... cxb4 {[%clk 0:02:17.3]} 22. cxb4 {[%clk
0:01:40.5]} 22... Qd5 {[%clk 0:01:47.9]} 23. b5 {[%clk 0:01:38]} 23... Qxb5
{[%clk 0:01:46.4]} 24. Nxd4 {[%clk 0:01:37.9]} 24... Nxd4 {[%clk 0:01:46.7]} 25.
Qxd4+ {[%clk 0:01:37.8]} 25... Qd5 {[%clk 0:01:47.2]} 26. Qg7+ {[%clk
0:01:37.5]} 26... Bf7 {[%clk 0:01:40.3]} 27. Bf3 {[%clk 0:01:31]} 27... Qe6
{[%clk 0:01:36.1]} 28. Rfe1 {[%clk 0:01:27.6]} 28... Qg6 {[%clk 0:01:30.8]} 29.
Qd4+ {[%clk 0:01:27.7]} 29... Qd6 {[%clk 0:01:30.2]} 30. Qg7 {[%clk 0:01:24.5]}
30... Qg6 {[%clk 0:01:26.3]} 31. Qb2 {[%clk 0:01:21.8]} 31... Rxe1+ {[%clk
0:01:05]} 32. Rxe1 {[%clk 0:01:20.1]} 32... Re8 {[%clk 0:01:02.4]} 33. Qb5+
{[%clk 0:01:12.3]} 33... Kd8 {[%clk 0:01:02.3]} 34. Rc1 {[%clk 0:01:04.2]} 34...
Qd6 {[%clk 0:00:51.6]} 35. Qxf5 {[%clk 0:01:00.2]} 35... Bd5 {[%clk 0:00:45.4]}
36. Ba5 {[%clk 0:00:55.7]} 36... Bxf3 {[%clk 0:00:42.3]} 37. Qc8+ {[%clk
0:00:55.7]} 37... Ke7 {[%clk 0:00:41.4]} 38. Re1+ {[%clk 0:00:56.2]} 38... Kf6
{[%clk 0:00:38.6]} 39. Qxe8 {[%clk 0:00:54]} 39... Qc5+ {[%clk 0:00:32.2]} 40.
Qe3 {[%clk 0:00:53]} 40... Qxe3+ {[%clk 0:00:26]} 41. Rxe3 {[%clk 0:00:52.8]}
41... Bd5 {[%clk 0:00:26.9]} 42. Bxb6 {[%clk 0:00:52.8]} 42... axb6 {[%clk
0:00:26.7]} 43. a3 {[%clk 0:00:52.9]} 1-0

[Event "*** Titled Tuesday Blitz"]
[Site "Chess.com"]
[Date "2020.12.01"]
[Round "5"]
[White "Sergienko_Sergey"]
[Black "Fh2411"]
[Result "1/2-1/2"]
[WhiteElo "2358"]
[BlackElo "2549"]
[TimeControl "180+1"]
[EndTime "10:54:05 PST"]
[Termination "Game drawn by repetition"]

1. e4 {[%clk 0:02:59.4]} 1... c5 {[%clk 0:02:41.2]} 2. Nf3 {[%clk 0:02:58.6]}
2... e6 {[%clk 0:02:42.1]} 3. d3 {[%clk 0:02:58]} 3... b5 {[%clk 0:02:40.3]} 4.
g3 {[%clk 0:02:56.3]} 4... Bb7 {[%clk 0:02:40.1]} 5. Bg2 {[%clk 0:02:55.8]} 5...
Nc6 {[%clk 0:02:40.6]} 6. O-O {[%clk 0:02:55.1]} 6... d6 {[%clk 0:02:40.9]} 7.
c3 {[%clk 0:02:51.2]} 7... Nf6 {[%clk 0:02:40.3]} 8. Re1 {[%clk 0:02:50.2]} 8...
Be7 {[%clk 0:02:39.7]} 9. d4 {[%clk 0:02:45.5]} 9... O-O {[%clk 0:02:39.5]} 10.
Nbd2 {[%clk 0:02:38.3]} 10... Qb6 {[%clk 0:02:25.8]} 11. Nf1 {[%clk 0:02:23.9]}
11... Rfd8 {[%clk 0:02:23.2]} 12. d5 {[%clk 0:02:19.4]} 12... Ne5 {[%clk
0:02:12.7]} 13. dxe6 {[%clk 0:02:09.1]} 13... Nxf3+ {[%clk 0:02:07.3]} 14. Qxf3
{[%clk 0:01:58.3]} 14... fxe6 {[%clk 0:02:08.2]} 15. Qe2 {[%clk 0:01:48.2]}
15... Qc6 {[%clk 0:02:02.4]} 16. Bg5 {[%clk 0:01:34.8]} 16... h6 {[%clk
0:01:54.5]} 17. Bxf6 {[%clk 0:01:33.8]} 17... Bxf6 {[%clk 0:01:54.3]} 18. Ne3
{[%clk 0:01:33.3]} 18... Qb6 {[%clk 0:01:33.3]} 19. Rad1 {[%clk 0:01:31.4]}
19... a5 {[%clk 0:01:26.4]} 20. Ng4 {[%clk 0:01:27.1]} 20... Be7 {[%clk
0:01:24.5]} 21. f4 {[%clk 0:01:00.3]} 21... c4+ {[%clk 0:01:20.4]} 22. Kh1
{[%clk 0:00:58.5]} 22... Rac8 {[%clk 0:01:19]} 23. f5 {[%clk 0:00:39.2]} 23...
e5 {[%clk 0:01:03.8]} 24. f6 {[%clk 0:00:27.8]} 24... Bxf6 {[%clk 0:00:57.6]}
25. Nxf6+ {[%clk 0:00:27.6]} 25... gxf6 {[%clk 0:00:58.5]} 26. Qg4+ {[%clk
0:00:26.3]} 26... Kh7 {[%clk 0:00:56.5]} 27. Qf5+ {[%clk 0:00:25.3]} 27... Kg7
{[%clk 0:00:56.6]} 28. Qg4+ {[%clk 0:00:21.1]} 28... Kh7 {[%clk 0:00:55.8]} 29.
Qf5+ {[%clk 0:00:20.4]} 29... Kg7 {[%clk 0:00:53.1]} 30. Rf1 {[%clk 0:00:19.8]}
30... Rf8 {[%clk 0:00:46.8]} 31. Qg4+ {[%clk 0:00:19.3]} 31... Kh7 {[%clk
0:00:44.6]} 32. Qf5+ {[%clk 0:00:18.9]} 32... Kg7 {[%clk 0:00:42.3]} 33. Qg4+
{[%clk 0:00:17.8]} 33... Kh7 {[%clk 0:00:35]} 34. Qf5+ {[%clk 0:00:17.7]} 34...
Kg7 {[%clk 0:00:34.8]} 1/2-1/2

[Event "*** Titled Tuesday Blitz"]
[Site "Chess.com"]
[Date "2020.12.01"]
[Round "5"]
[White "sbouchet"]
[Black "Taktikmonster"]
[Result "1-0"]
[WhiteElo "2385"]
[BlackElo "2205"]
[TimeControl "180+1"]
[EndTime "10:54:07 PST"]
[Termination "sbouchet won on time"]

1. e4 {[%clk 0:03:00.2]} 1... c5 {[%clk 0:02:56.4]} 2. c3 {[%clk 0:03:00]} 2...
Nf6 {[%clk 0:02:54.1]} 3. e5 {[%clk 0:03:00.1]} 3... Nd5 {[%clk 0:02:54.4]} 4.
d4 {[%clk 0:03:00.8]} 4... cxd4 {[%clk 0:02:55.3]} 5. Nf3 {[%clk 0:03:01]} 5...
e6 {[%clk 0:02:55.6]} 6. cxd4 {[%clk 0:02:59.7]} 6... d6 {[%clk 0:02:55.5]} 7.
Be2 {[%clk 0:03:00.2]} 7... Nc6 {[%clk 0:02:54.5]} 8. O-O {[%clk 0:03:00.2]}
8... Be7 {[%clk 0:02:55.1]} 9. Nbd2 {[%clk 0:02:59.6]} 9... O-O {[%clk
0:02:53.9]} 10. Nc4 {[%clk 0:02:59.4]} 10... dxe5 {[%clk 0:02:51.3]} 11. dxe5
{[%clk 0:03:00.3]} 11... b5 {[%clk 0:02:45]} 12. Ne3 {[%clk 0:02:59.7]} 12... a6
{[%clk 0:02:33.1]} 13. Nxd5 {[%clk 0:02:57.8]} 13... Qxd5 {[%clk 0:02:26.1]} 14.
Qxd5 {[%clk 0:02:57]} 14... exd5 {[%clk 0:02:27]} 15. Bf4 {[%clk 0:02:55.3]}
15... Be6 {[%clk 0:02:20.2]} 16. Rfd1 {[%clk 0:02:46.2]} 16... Rfd8 {[%clk
0:02:17]} 17. Nd4 {[%clk 0:02:42.3]} 17... Nxd4 {[%clk 0:02:16.6]} 18. Rxd4
{[%clk 0:02:43.2]} 18... Bc5 {[%clk 0:02:16.4]} 19. Rd2 {[%clk 0:02:42.2]} 19...
d4 {[%clk 0:02:14.5]} 20. a3 {[%clk 0:02:36.3]} 20... Rac8 {[%clk 0:02:13.6]}
21. Rad1 {[%clk 0:02:34.5]} 21... Bb3 {[%clk 0:02:04.4]} 22. Rc1 {[%clk
0:02:17.1]} 22... Bb6 {[%clk 0:01:41.4]} 23. Rxc8 {[%clk 0:02:10.8]} 23... Rxc8
{[%clk 0:01:42.3]} 24. g4 {[%clk 0:02:08.8]} 24... Rc2 {[%clk 0:01:24.9]} 25.
Bd3 {[%clk 0:01:46.9]} 25... Rc1+ {[%clk 0:01:00.6]} 26. Kg2 {[%clk 0:01:45.5]}
26... Ba5 {[%clk 0:01:00.8]} 27. Re2 {[%clk 0:01:40.6]} 27... Rc5 {[%clk
0:00:15]} 28. Bd2 {[%clk 0:01:35.4]} 28... Bxd2 {[%clk 0:00:12]} 29. Rxd2 {[%clk
0:01:35.3]} 29... Rxe5 {[%clk 0:00:12.4]} 30. f4 {[%clk 0:01:22.5]} 30... Rd5
{[%clk 0:00:11.4]} 31. Be4 {[%clk 0:01:21.3]} 31... Rd6 {[%clk 0:00:11.7]} 32.
Kf3 {[%clk 0:01:21.9]} 32... Kf8 {[%clk 0:00:10.8]} 33. h4 {[%clk 0:01:19.6]}
33... g6 {[%clk 0:00:09.8]} 34. h5 {[%clk 0:01:19.4]} 34... Ke7 {[%clk
0:00:08.9]} 35. h6 {[%clk 0:01:19.3]} 35... Kd7 {[%clk 0:00:05.4]} 36. f5 {[%clk
0:01:16.1]} 36... Bc4 {[%clk 0:00:04.5]} 37. Kf4 {[%clk 0:01:11.4]} 37... gxf5
{[%clk 0:00:04.2]} 38. Bxf5+ {[%clk 0:01:11.1]} 38... Ke7 {[%clk 0:00:04.7]} 39.
Bxh7 {[%clk 0:01:11.2]} 39... Rxh6 {[%clk 0:00:04.6]} 40. Bf5 {[%clk 0:01:10.4]}
40... Rd6 {[%clk 0:00:04.8]} 41. Ke5 {[%clk 0:01:08]} 41... f6+ {[%clk
0:00:03.5]} 42. Ke4 {[%clk 0:01:08.3]} 42... d3 {[%clk 0:00:02.4]} 43. Ke3
{[%clk 0:01:07.4]} 1-0

[Event "*** Titled Tuesday Blitz"]
[Site "Chess.com"]
[Date "2020.12.01"]
[Round "5"]
[White "PaulfromSPb"]
[Black "Stosk"]
[Result "1-0"]
[WhiteElo "2676"]
[BlackElo "2401"]
[TimeControl "180+1"]
[EndTime "10:54:11 PST"]
[Termination "PaulfromSPb won by resignation"]

1. e4 {[%clk 0:02:47.8]} 1... e5 {[%clk 0:02:59.1]} 2. Nf3 {[%clk 0:02:47.3]}
2... Nf6 {[%clk 0:02:58.9]} 3. Nxe5 {[%clk 0:02:42.1]} 3... Nxe4 {[%clk
0:02:58.1]} 4. Qe2 {[%clk 0:02:41.1]} 4... Qe7 {[%clk 0:02:57.8]} 5. Qxe4 {[%clk
0:02:38.8]} 5... d6 {[%clk 0:02:57.9]} 6. d4 {[%clk 0:02:34.8]} 6... dxe5 {[%clk
0:02:57.6]} 7. dxe5 {[%clk 0:02:32.3]} 7... Nc6 {[%clk 0:02:57.1]} 8. Bf4 {[%clk
0:02:32.2]} 8... g5 {[%clk 0:02:52.4]} 9. Bg3 {[%clk 0:02:31.1]} 9... f5 {[%clk
0:02:50.7]} 10. Qe2 {[%clk 0:02:20.9]} 10... f4 {[%clk 0:02:49.1]} 11. Qh5+
{[%clk 0:02:20.1]} 11... Qf7 {[%clk 0:02:48.9]} 12. Qxg5 {[%clk 0:02:19.7]}
12... fxg3 {[%clk 0:02:41.4]} 13. hxg3 {[%clk 0:02:19.7]} 13... Nd4 {[%clk
0:02:15.6]} 14. Bd3 {[%clk 0:02:17.9]} 14... Bf5 {[%clk 0:02:12.2]} 15. Bxf5
{[%clk 0:02:14.8]} 15... Qxf5 {[%clk 0:02:10.9]} 16. Qxf5 {[%clk 0:02:14.7]}
16... Nxf5 {[%clk 0:02:11.8]} 17. Nd2 {[%clk 0:02:10.6]} 17... O-O-O {[%clk
0:01:57.2]} 18. O-O-O {[%clk 0:02:08.9]} 18... Bg7 {[%clk 0:01:42.6]} 19. Rh5
{[%clk 0:02:06]} 19... Nd4 {[%clk 0:01:39]} 20. Re1 {[%clk 0:01:57.8]} 20...
Rhe8 {[%clk 0:01:27.2]} 21. f4 {[%clk 0:01:57.1]} 21... h6 {[%clk 0:01:18.4]}
22. c3 {[%clk 0:01:53.5]} 22... Nc6 {[%clk 0:01:16.7]} 23. Kc2 {[%clk
0:01:51.6]} 23... Rd5 {[%clk 0:01:12.7]} 24. Re2 {[%clk 0:01:49.3]} 24... Rg8
{[%clk 0:01:03.7]} 25. Ne4 {[%clk 0:01:44.5]} 25... Rdd8 {[%clk 0:00:54.5]} 26.
Rf5 {[%clk 0:01:39]} 26... Ne7 {[%clk 0:00:50]} 27. Rf7 {[%clk 0:01:37.3]} 27...
Bf8 {[%clk 0:00:50]} 28. Nf6 {[%clk 0:01:30.9]} 28... Rxg3 {[%clk 0:00:48.7]}
29. e6 {[%clk 0:01:24.4]} 29... Nc6 {[%clk 0:00:41.7]} 30. f5 {[%clk 0:01:15.9]}
30... Be7 {[%clk 0:00:41.3]} 31. Ne4 {[%clk 0:01:10.5]} 31... Rg4 {[%clk
0:00:35.2]} 32. f6 {[%clk 0:01:09.4]} 32... Re8 {[%clk 0:00:30.9]} 33. fxe7
{[%clk 0:01:08.1]} 33... Rxe7 {[%clk 0:00:31.8]} 34. Rf8+ {[%clk 0:00:56.3]}
34... Nd8 {[%clk 0:00:31.5]} 35. Rd2 {[%clk 0:00:56]} 35... b6 {[%clk
0:00:31.7]} 36. Rfxd8+ {[%clk 0:00:46.9]} 36... Kb7 {[%clk 0:00:31.9]} 37. Nf6
{[%clk 0:00:41.4]} 37... Rg6 {[%clk 0:00:26.6]} 38. Nd5 {[%clk 0:00:40.6]} 38...
Rexe6 {[%clk 0:00:25]} 39. Nf4 {[%clk 0:00:40.5]} 39... Rd6 {[%clk 0:00:23.8]}
40. Nxg6 {[%clk 0:00:40.5]} 1-0